fUST/lending_fUST_20250813
["ID","MTS","AMOUNT","RATE_DAILY","PERIOD"]
[378865333,1755056335314,460.0,0.00029999,120]
[378865334,1755056337283,460.0,0.00029999,120]
[378865338,1755056339538,460.0,0.00029999,120]
[378865339,1755056344471,460.0,0.00029999,120]
[378865340,1755056345827,689.45,0.00029999,120]
[378865341,1755056347106,745.96,0.00029999,120]
[378865342,1755056349345,460.0,0.00029999,120]
[378865343,1755056350032,460.0,0.00029999,120]
[378865344,1755056356275,460.0,0.00029999,120]
[378865345,1755056359717,460.0,0.00029999,120]
[378865346,1755056364082,460.0,0.00029999,120]
[378865347,1755056365671,1204.99,0.00029999,120]
[378865348,1755056366373,460.0,0.00029999,120]
[378865349,1755056370043,460.0,0.00029999,120]
[378865350,1755056370979,460.0,0.00029999,120]
[378865351,1755056373521,296.71841889,0.00029999,120]
[378865352,1755056379196,500.0,0.00029999,120]
[378865353,1755056379300,460.0,0.00029999,120]
[378865354,1755056384412,460.0,0.00029999,120]
[378865355,1755056385747,460.0,0.00029999,120]
[378865356,1755056386536,460.0,0.00029999,120]
[378865357,1755056389031,569.76775152,0.00029999,120]
[378865358,1755056391308,225.46759728,0.00029999,120]
[378865359,1755056391790,460.0,0.00029999,120]
[378865360,1755056392765,460.0,0.00029999,120]
[378865361,1755056394536,460.0,0.00029999,120]
[378865362,1755056396629,460.0,0.00029999,120]
[378865363,1755056396744,460.0,0.00029999,120]
[378865364,1755056396809,460.0,0.00029999,120]
[378865365,1755056399151,460.0,0.00029999,120]
[378865366,1755056403699,460.0,0.00029999,120]
[378865367,1755056406163,460.0,0.00029999,120]
[378865368,1755056412193,951.41,0.00029999,120]
[378865369,1755056412465,460.0,0.00029999,120]
[378865370,1755056412900,460.0,0.00029999,120]
[378865371,1755056417371,460.0,0.00029999,120]
[378865372,1755056419479,460.0,0.00029999,120]
[378865373,1755056420303,460.0,0.00029999,120]
[378865374,1755056424319,196.27092221,0.00029999,120]
[378865375,1755056424637,460.0,0.00029999,120]
[378865376,1755056425785,460.0,0.00029999,120]
[378865377,1755056430711,460.0,0.00029999,120]
[378865378,1755056436497,620.49,0.00029999,120]
[378865379,1755056438959,460.0,0.00029999,120]
[378865380,1755056442146,460.0,0.00029999,120]
[378865381,1755056443856,460.0,0.00029999,120]
[378865382,1755056445095,552.15128463,0.00029999,120]
[378865383,1755056447911,460.0,0.00029999,120]
[378865384,1755056448003,460.0,0.00029999,120]
[378865385,1755056450276,401.54812703,0.00029999,120]
[378865386,1755056454267,460.0,0.00029999,120]
[378865387,1755056454571,460.0,0.00029999,120]
[378865388,1755056455502,460.0,0.00029999,120]
[378865389,1755056455882,460.0,0.00029999,120]
[378865390,1755056456209,460.0,0.00029999,120]
[378865392,1755056461365,3846.55,0.00029999,120]
[378865393,1755056464848,954.71,0.00029999,120]
[378865394,1755056465508,460.0,0.00029999,120]
[378865395,1755056465944,721.64,0.00029999,120]
[378865396,1755056469695,460.0,0.00029999,120]
[378865397,1755056471326,460.0,0.00029999,120]
[378865398,1755056471770,1897.96,0.00029999,120]
[378865399,1755056473160,469.96162626,0.00029999,120]
[378865400,1755056474079,460.0,0.00029999,120]
[378865401,1755056474491,460.0,0.00029999,120]
[378865402,1755056475053,279.39719495,0.00029999,120]
[378865403,1755056477458,460.0,0.00029999,120]
[378865404,1755056478282,460.0,0.00029999,120]
[378865405,1755056487912,460.0,0.00029999,120]
[378865406,1755056488198,460.0,0.00029999,120]
[378865407,1755056489282,559.28,0.00029999,120]
[378865408,1755056492534,500.0,0.00029999,120]
[378865409,1755056492798,500.0,0.00029999,120]
[378865410,1755056493466,460.0,0.00029999,120]
[378865411,1755056494140,460.0,0.00029999,120]
[378865412,1755056498279,460.0,0.00029999,120]
[378865413,1755056502121,5173.94,0.00029999,120]
[378865414,1755056508092,460.0,0.00029999,120]
[378865415,1755056508888,460.0,0.00029999,120]
[378865416,1755056510611,460.0,0.00029999,120]
[378865417,1755056510976,460.0,0.00029999,120]
[378865418,1755056526683,460.0,0.00029999,120]
[378865419,1755056530686,1001.03,0.00029999,120]
[378865420,1755056535246,460.0,0.00029999,120]
[378865421,1755056538628,460.0,0.00029999,120]
[378865422,1755056539852,460.0,0.00029999,120]
[378865423,1755056540072,615.5,0.00029999,120]
[378865424,1755056545167,1116.75,0.00029999,120]
[378865425,1755056552802,460.0,0.00029999,120]
[378865426,1755056553244,2047.5,0.00029999,120]
[378865427,1755056556101,460.0,0.00029999,120]
[378865428,1755056556692,460.0,0.00029999,120]
[378865429,1755056560772,460.0,0.00029999,120]
[378865430,1755056566074,460.0,0.00029999,120]
[378865431,1755056569005,460.0,0.00029999,120]
[378865432,1755056571742,460.0,0.00029999,120]
[378865433,1755056571801,486.2,0.00029999,120]
[378865434,1755056577010,448.46,0.00029999,120]
[378865435,1755056577789,460.0,0.00029999,120]
[378865436,1755056583857,222.03612222,0.00029999,120]
[378865437,1755056585243,460.0,0.00029999,120]
[378865438,1755056588524,460.0,0.00029999,120]
[378865439,1755056588794,1004.15,0.00029999,120]
[378865440,1755056590735,460.0,0.00029999,120]
[378865441,1755056594362,460.0,0.00029999,120]
[378865442,1755056596139,326.60746993,0.00029999,120]
[378865443,1755056596210,460.0,0.00029999,120]
[378865444,1755056597173,460.0,0.00029999,120]
[378865445,1755056598609,460.0,0.00029999,120]
[378865446,1755056605303,460.0,0.00029999,120]
[378865447,1755056608394,1393.76,0.00029999,120]
[378865448,1755056615187,460.0,0.00029999,120]
[378865449,1755056621021,187.0211501,0.00029999,120]
[378865450,1755056624515,460.0,0.00029999,120]
[378865451,1755056626961,460.0,0.00029999,120]
[378865452,1755056627597,460.0,0.00029999,120]
[378865453,1755056627813,765.81,0.00029999,120]
[378865454,1755056628127,460.0,0.00029999,120]
[378865455,1755056628556,460.0,0.00029999,120]
[378865456,1755056629942,460.0,0.00029999,120]
[378865457,1755056634330,460.0,0.00029999,120]
[378865458,1755056636965,460.0,0.00029999,120]
[378865459,1755056637761,460.0,0.00029999,120]
[378865460,1755056639396,460.0,0.00029999,120]
[378865461,1755056646690,460.0,0.00029999,120]
[378865462,1755056647718,460.0,0.00029999,120]
[378865463,1755056648886,460.0,0.00029999,120]
[378865464,1755056651377,911.77,0.00029999,120]
[378865465,1755056654336,462.83844648,0.00029999,120]
[378865466,1755056656587,460.0,0.00029999,120]
[378865467,1755056659183,460.0,0.00029999,120]
[378865468,1755056659682,460.0,0.00029999,120]
[378865469,1755056659867,460.0,0.00029999,120]
[378865470,1755056669302,460.0,0.00029999,120]
[378865471,1755056671802,914.93,0.00029999,120]
[378865472,1755056672833,460.0,0.00029999,120]
[378865473,1755056677849,460.0,0.00029999,120]
[378865474,1755056678821,460.0,0.00029999,120]
[378865475,1755056679750,460.0,0.00029999,120]
[378865476,1755056679969,3686.28,0.00029999,120]
[378865477,1755056681001,460.0,0.00029999,120]
[378865478,1755056681312,460.0,0.00029999,120]
[378865479,1755056693785,460.0,0.00029999,120]
[378865480,1755056694386,460.0,0.00029999,120]
[378865481,1755056694833,460.0,0.00029999,120]
[378865482,1755056696211,460.0,0.00029999,120]
[378865483,1755056697064,691.57,0.00029999,120]
[378865484,1755056698759,460.0,0.00029999,120]
[378865485,1755056699658,460.0,0.00029999,120]
[378865486,1755056701198,460.0,0.00029999,120]
[378865488,1755056705655,460.0,0.00029999,120]
[378865489,1755056705822,535.98,0.00029999,120]
[378865490,1755056706858,1818.88,0.00029999,120]
[378865491,1755056708914,460.0,0.00029999,120]
[378865492,1755056711885,460.0,0.00029999,120]
[378865493,1755056721782,460.0,0.00029999,120]
[378865494,1755056724257,464.72221433,0.00029999,120]
[378865495,1755056725292,460.0,0.00029999,120]
[378865496,1755056725877,460.0,0.00029999,120]
[378865497,1755056726269,460.0,0.00029999,120]
[378865498,1755056729698,460.0,0.00029999,120]
[378865499,1755056733344,460.0,0.00029999,120]
[378865500,1755056736600,460.0,0.00029999,120]
[378865501,1755056739165,460.0,0.00029999,120]
[378865502,1755056741295,460.0,0.00029999,120]
[378865503,1755056742586,464.24787849,0.00029999,120]
[378865504,1755056744437,569.96,0.00029999,120]
[378865505,1755056745056,959.32,0.00029999,120]
[378865506,1755056745552,460.0,0.00029999,120]
[378865507,1755056745829,589.85,0.00029999,120]
[378865508,1755056752164,460.0,0.00029999,120]
[378865509,1755056758981,460.0,0.00029999,120]
[378865510,1755056761745,465.31578076,0.00029999,120]
[378865511,1755056761968,460.0,0.00029999,120]
[378865512,1755056766049,425.04925705,0.00029999,120]
[378865513,1755056766232,5280.9,0.00029999,120]
[378865514,1755056769486,460.0,0.00029999,120]
[378865515,1755056770246,460.0,0.00029999,120]
[378865516,1755056776159,460.0,0.00029999,120]
[378865517,1755056777480,460.0,0.00029999,120]
[378865518,1755056780373,460.0,0.00029999,120]
[378865519,1755056781877,1070.22,0.00029999,120]
[378865520,1755056783474,460.0,0.00029999,120]
[378865521,1755056785771,463.53008162,0.00029999,120]
[378865522,1755056787675,460.0,0.00029999,120]
[378865523,1755056792322,460.0,0.00029999,120]
[378865524,1755056794190,464.40043515,0.00029999,120]
[378865525,1755056795122,460.0,0.00029999,120]
[378865526,1755056796091,460.0,0.00029999,120]
[378865527,1755056796271,812.48,0.00029999,120]
[378865528,1755056798214,460.0,0.00029999,120]
[378865529,1755056803788,460.0,0.00029999,120]
[378865530,1755056804161,460.0,0.00029999,120]
[378865531,1755056807722,277.78772527,0.00029999,120]
[378865532,1755056810192,474.03334484,0.00029999,120]
[378865533,1755056812069,460.0,0.00029999,120]
[378865534,1755056812620,460.0,0.00029999,120]
[378865535,1755056815803,1335.69,0.00029999,120]
[378865536,1755056816479,460.0,0.00029999,120]
[378865537,1755056817440,460.0,0.00029999,120]
[378865538,1755056818222,1962.18,0.00029999,120]
[378865539,1755056821484,460.0,0.00029999,120]
[378865540,1755056822641,460.0,0.00029999,120]
[378865541,1755056823719,460.0,0.00029999,120]
[378865542,1755056824983,460.0,0.00029999,120]
[378865543,1755056826079,460.0,0.00029999,120]
[378865544,1755056828319,460.0,0.00029999,120]
[378865545,1755056829421,1112.94,0.00029999,120]
[378865546,1755056829582,460.0,0.00029999,120]
[378865547,1755056830706,460.0,0.00029999,120]
[378865548,1755056833092,460.0,0.00029999,120]
[378865549,1755056835716,733.9,0.00029999,120]
[378865550,1755056836723,460.0,0.00029999,120]
[378865551,1755056837259,208.62404131,0.00029999,120]
[378865552,1755056838129,456.41296358,0.00029999,120]
[378865553,1755056847041,460.0,0.00029999,120]
[378865554,1755056851374,460.0,0.00029999,120]
[378865555,1755056853225,460.0,0.00029999,120]
[378865556,1755056857727,460.0,0.00029999,120]
[378865557,1755056857929,460.0,0.00029999,120]
[378865558,1755056858328,464.08659621,0.00029999,120]
[378865559,1755056859844,460.0,0.00029999,120]
[378865560,1755056860558,395.33549903,0.00029999,120]
[378865561,1755056865215,460.0,0.00029999,120]
[378865562,1755056868429,460.0,0.00029999,120]
[378865563,1755056870590,460.0,0.00029999,120]
[378865564,1755056873745,460.0,0.00029999,120]
[378865565,1755056880421,460.0,0.00029999,120]
[378865566,1755056885455,460.0,0.00029999,120]
[378865567,1755056898415,876.81,0.00029999,120]
[378865568,1755056901386,460.0,0.00029999,120]
[378865569,1755056903488,460.0,0.00029999,120]
[378865570,1755056907489,460.0,0.00029999,120]
[378865571,1755056907975,460.0,0.00029999,120]
[378865572,1755056908860,873.78,0.00029999,120]
[378865573,1755056912471,460.0,0.00029999,120]
[378865574,1755056913334,460.0,0.00029999,120]
[378865575,1755056920353,662.76,0.00029999,120]
[378865576,1755056920544,460.0,0.00029999,120]
[378865577,1755056921705,3692.3,0.00029999,120]
[378865578,1755056921880,460.0,0.00029999,120]
[378865579,1755056926903,460.0,0.00029999,120]
[378865580,1755056928392,602.22383518,0.00029999,120]
[378865581,1755056939846,660.73,0.00029999,120]
[378865582,1755056941216,460.0,0.00029999,120]
[378865583,1755056941686,460.0,0.00029999,120]
[378865584,1755056944113,441.85096559,0.00029999,120]
[378865585,1755056947642,625.26,0.00029999,120]
[378865586,1755056951705,460.0,0.00029999,120]
[378865587,1755056954127,460.0,0.00029999,120]
[378865588,1755056955397,385.26285657,0.00029999,120]
[378865589,1755056958060,460.0,0.00029999,120]
[378865590,1755056960023,462.20406639,0.00029999,120]
[378865591,1755056962228,460.0,0.00029999,120]
[378865592,1755056963397,460.0,0.00029999,120]
[378865593,1755056963492,460.0,0.00029999,120]
[378865594,1755056968888,1802.62,0.00029999,120]
[378865595,1755056969189,565.27,0.00029999,120]
[378865596,1755056969246,460.0,0.00029999,120]
[378865597,1755056976221,460.0,0.00029999,120]
[378865598,1755056978180,460.0,0.00029999,120]
[378865599,1755056979672,465.01659452,0.00029999,120]
[378865600,1755056982145,460.0,0.00029999,120]
[378865601,1755056984066,460.0,0.00029999,120]
[378865602,1755056985356,460.0,0.00029999,120]
[378865603,1755056987889,1017.37,0.00029999,120]
[378865604,1755056992328,460.0,0.00029999,120]
[378865605,1755057001289,460.0,0.00029999,120]
[378865606,1755057007495,5060.86,0.00029999,120]
[378865607,1755057015542,463.75149354,0.00029999,120]
[378865608,1755057017236,460.0,0.00029999,120]
[378865609,1755057017482,460.0,0.00029999,120]
[378865610,1755057019513,460.0,0.00029999,120]
[378865611,1755057023767,460.0,0.00029999,120]
[378865612,1755057031692,460.0,0.00029999,120]
[378865668,1755057032600,460.0,0.00029999,120]
[378865680,1755057032740,-255.0,0.00018031,2]
[378865681,1755057032756,-650.54141352,0.00018155,2]
[378865682,1755057032768,-549.45858648,0.00018155,2]
[378865683,1755057032777,-300.0,0.00018156,2]
[378865684,1755057032787,-201.17460146,0.00018156,2]
[378865686,1755057032799,-3.82539854,0.00018156,2]
[378865688,1755057032814,-300.0,0.00018156,2]
[378865690,1755057032823,-211.98008376,0.00018156,2]
[378865691,1755057032835,-88.01991624,0.00018156,2]
[378865692,1755057032844,-228.46459151,0.00018156,2]
[378865749,1755057038270,460.0,0.00029999,120]
[378865784,1755057038848,-71.53540849,0.00018156,2]
[378865786,1755057038858,-998.63173196,0.00018156,2]
[378865788,1755057038871,-201.36826804,0.00018156,2]
[378865790,1755057038881,-1891.18593386,0.00018157,2]
[378865835,1755057039309,-10844.3505808,0.00018157,2]
[378865926,1755057040171,463.93960698,0.00029999,120]
[378866011,1755057040940,-5998.92822503,0.00018157,2]
[378866072,1755057041558,460.0,0.00029999,120]
[378866176,1755057042724,460.0,0.00029999,120]
[378866254,1755057043473,1074.59,0.00029999,120]
[378866314,1755057044057,-920.0,0.00018157,2]
[378866594,1755057046902,-1000.0,0.00018157,2]
[378866607,1755057047001,179.09294013,0.00029999,120]
[378866705,1755057047948,460.0,0.00029999,120]
[378866816,1755057049206,460.0,0.00029999,120]
[378866838,1755057049411,2106.57,0.00029999,120]
[378866871,1755057049727,460.94178801,0.00029999,120]
[378866908,1755057050076,460.0,0.00029999,120]
[378866933,1755057050302,703.33,0.00029999,120]
[378867270,1755057053762,462.74594076,0.00029999,120]
[378867282,1755057053867,176.30317872,0.00029999,120]
[378867476,1755057055856,460.0,0.00029999,120]
[378867672,1755057057703,460.0,0.00029999,120]
[378867843,1755057059427,470.41836574,0.00029999,120]
[378867890,1755057059968,460.0,0.00029999,120]
[378868092,1755057062045,460.0,0.00029999,120]
[378868115,1755057062258,460.0,0.00029999,120]
[378868168,1755057062774,460.0,0.00029999,120]
[378868218,1755057063391,460.0,0.00029999,120]
[378868517,1755057067670,1066.57,0.00029999,120]
[378868762,1755057071071,460.0,0.00029999,120]
[378868764,1755057072812,500.0,0.00029999,120]
[378868765,1755057072940,460.0,0.00029999,120]
[378868766,1755057073045,500.0,0.00029999,120]
[378868767,1755057073896,460.0,0.00029999,120]
[378868768,1755057073958,460.0,0.00029999,120]
[378868769,1755057074751,500.0,0.00029999,120]
[378868770,1755057075030,500.0,0.00029999,120]
[378868771,1755057075328,500.0,0.00029999,120]
[378868772,1755057075567,500.0,0.00029999,120]
[378868773,1755057076094,460.0,0.00029999,120]
[378868774,1755057077658,460.0,0.00029999,120]
[378868775,1755057079594,460.0,0.00029999,120]
[378868776,1755057080994,596.94916934,0.00029999,120]
[378868777,1755057081388,460.0,0.00029999,120]
[378868778,1755057082121,460.0,0.00029999,120]
[378868779,1755057083239,460.0,0.00029999,120]
[378868780,1755057087618,460.0,0.00029999,120]
[378868781,1755057087997,460.0,0.00029999,120]
[378868782,1755057088625,460.0,0.00029999,120]
[378868783,1755057089961,460.0,0.00029999,120]
[378868784,1755057092109,460.0,0.00029999,120]
[378868785,1755057093947,460.0,0.00029999,120]
[378868786,1755057097245,461.67402631,0.00029999,120]
[378868787,1755057097372,460.0,0.00029999,120]
[378868788,1755057098430,465.4122643,0.00029999,120]
[378868789,1755057098490,460.0,0.00029999,120]
[378868790,1755057108794,460.0,0.00029999,120]
[378868791,1755057108917,460.0,0.00029999,120]
[378868792,1755057109112,460.0,0.00029999,120]
[378868793,1755057109814,460.0,0.00029999,120]
[378868794,1755057110671,464.73053384,0.00029999,120]
[378868795,1755057111708,460.0,0.00029999,120]
[378868796,1755057116672,460.0,0.00029999,120]
[378868797,1755057116869,460.0,0.00029999,120]
[378868798,1755057120993,460.0,0.00029999,120]
[378868799,1755057124590,914.17,0.00029999,120]
[378868800,1755057128877,960.55,0.00029999,120]
[378868801,1755057130716,3698.08,0.00029999,120]
[378868802,1755057132593,460.0,0.00029999,120]
[378868803,1755057132936,460.0,0.00029999,120]
[378868804,1755057134013,803.12,0.00029999,120]
[378868805,1755057136435,462.62495386,0.00029999,120]
[378868806,1755057137081,460.0,0.00029999,120]
[378868807,1755057138291,460.0,0.00029999,120]
[378868808,1755057140509,460.0,0.00029999,120]
[378868809,1755057142902,460.0,0.00029999,120]
[378868810,1755057143682,460.0,0.00029999,120]
[378868811,1755057144026,460.0,0.00029999,120]
[378868812,1755057144096,460.0,0.00029999,120]
[378868813,1755057146544,460.0,0.00029999,120]
[378868814,1755057147401,460.0,0.00029999,120]
[378868815,1755057150017,460.0,0.00029999,120]
[378868816,1755057150120,465.63395227,0.00029999,120]
[378868817,1755057150173,460.0,0.00029999,120]
[378868818,1755057152364,460.0,0.00029999,120]
[378868819,1755057154529,460.0,0.00029999,120]
[378868820,1755057154794,708.45,0.00029999,120]
[378868821,1755057157723,500.0,0.00029999,120]
[378868822,1755057160761,460.0,0.00029999,120]
[378868823,1755057168820,460.0,0.00029999,120]
[378868824,1755057170529,460.0,0.00029999,120]
[378868825,1755057170607,460.0,0.00029999,120]
[378868826,1755057173502,460.0,0.00029999,120]
[378868827,1755057174026,472.29365182,0.00029999,120]
[378868828,1755057175191,460.0,0.00029999,120]
[378868829,1755057176949,460.0,0.00029999,120]
[378868830,1755057179041,460.0,0.00029999,120]
[378868831,1755057179459,465.55005823,0.00029999,120]
[378868832,1755057179793,460.0,0.00029999,120]
[378868833,1755057183330,460.0,0.00029999,120]
[378868834,1755057187003,460.0,0.00029999,120]
[378868835,1755057190142,460.0,0.00029999,120]
[378868836,1755057191665,1164.45,0.00029999,120]
[378868837,1755057193241,460.0,0.00029999,120]
[378868838,1755057194209,460.0,0.00029999,120]
[378868839,1755057194278,460.0,0.00029999,120]
[378868840,1755057194959,460.0,0.00029999,120]
[378868841,1755057195865,460.0,0.00029999,120]
[378868842,1755057197377,460.0,0.00029999,120]
[378868843,1755057197627,480.37,0.00029999,120]
[378868844,1755057198515,471.54487459,0.00029999,120]
[378868845,1755057200920,711.31,0.00029999,120]
[378868846,1755057202445,1903.44,0.00029999,120]
[378868847,1755057205306,460.0,0.00029999,120]
[378868848,1755057209314,460.0,0.00029999,120]
[378868849,1755057212418,471.85196324,0.00029999,120]
[378868850,1755057213149,460.0,0.00029999,120]
[378868851,1755057213440,460.0,0.00029999,120]
[378868852,1755057215024,460.0,0.00029999,120]
[378868853,1755057216757,500.0,0.00029999,120]
[378868854,1755057217002,500.0,0.00029999,120]
[378868855,1755057217246,500.0,0.00029999,120]
[378868856,1755057217475,500.0,0.00029999,120]
[378868857,1755057217771,500.0,0.00029999,120]
[378868858,1755057218122,500.0,0.00029999,120]
[378868859,1755057218372,500.0,0.00029999,120]
[378868860,1755057218636,500.0,0.00029999,120]
[378868861,1755057218912,500.0,0.00029999,120]
[378868862,1755057219192,500.0,0.00029999,120]
[378868863,1755057219424,536.47,0.00029999,120]
[378868864,1755057224087,460.0,0.00029999,120]
[378868865,1755057225544,460.0,0.00029999,120]
[378868866,1755057228118,460.0,0.00029999,120]
[378868867,1755057229942,536.37347768,0.00029999,120]
[378868868,1755057230086,33.52859911,0.00029999,120]
[378868872,1755057404323,164.285253,0.00013699,2]
[378868936,1755058231858,-287.2157036,0.00017925,2]
[378868940,1755058231871,-6444.2563417,0.0001804,2]
[378868943,1755058231881,-278.5896962,0.00018044,2]
[378868945,1755058231890,-160.0,0.00018513,2]
[378868948,1755058231900,-1200.0,0.00018817,2]
[378868951,1755058231909,-1200.0,0.00018818,2]
[378868954,1755058231918,-270.0,0.00018819,2]
[378868956,1755058231928,-300.0,0.00018819,2]
[378868958,1755058231937,-4710.86556561,0.00018822,2]
[378868962,1755058231946,-1603.22989016,0.00018873,2]
[378868965,1755058231972,-189.12780472,0.00018873,2]
[378868967,1755058231981,-1088.79958016,0.000189,2]
[378868969,1755058231991,-40236.77338981,0.00018973,2]
[378868971,1755058232000,-616.75118594,0.00018973,2]
[378868974,1755058232010,-7582.90932116,0.00018973,2]
[378868977,1755058232019,-500.0,0.00019049,2]
[378868980,1755058232029,-500.0,0.00019049,2]
[378868983,1755058232040,-157.37608488,0.00019049,2]
[378868987,1755058232057,-500.0,0.00019049,2]
[378868989,1755058232068,-500.0,0.00019049,2]
[378868991,1755058232086,-383.29339584,0.00019049,2]
[378868993,1755058232101,-222.38073437,0.00019049,2]
[378868995,1755058232111,-534.59204421,0.00019049,2]
[378868997,1755058232120,-500.0,0.00019049,2]
[378868999,1755058232130,-500.0,0.00019049,2]
[378869001,1755058232139,-569.09796257,0.00019049,2]
[378869003,1755058232149,-500.0,0.00019049,2]
[378869005,1755058232159,-500.0,0.00019049,2]
[378869007,1755058232168,-386.99084761,0.00019049,2]
[378869009,1755058232178,-371.17758489,0.00019049,2]
[378869011,1755058232187,-500.0,0.00019049,2]
[378869013,1755058232196,-500.0,0.00019049,2]
[378869015,1755058232206,-500.0,0.00019049,2]
[378869017,1755058232216,-500.0,0.00019049,2]
[378869019,1755058232227,-506.73842889,0.00019049,2]
[378869021,1755058232238,-192.90567818,0.00019049,2]
[378869023,1755058232248,-151.0,0.0001905,2]
[378869025,1755058232257,-500.0,0.0001905,2]
[378869027,1755058232267,-500.0,0.0001905,2]
[378869029,1755058232276,-500.0,0.0001905,2]
[378869031,1755058232287,-527.553405,0.0001905,2]
[378869033,1755058232296,-17842.522448,0.0001905,2]
[378869035,1755058232307,-187.38397611,0.0001905,2]
[378869037,1755058232316,-434.11,0.00019052,3]
[378869039,1755058232326,-217.05,0.00019052,3]
[378869041,1755058232335,-651.2,0.00019052,3]
[378869043,1755058232344,-110366.93395454,0.0001906,2]
[378869045,1755058232354,-511.83159814,0.00019061,2]
[378869047,1755058232364,-594.90601639,0.00019061,2]
[378869049,1755058232373,-511.83159814,0.00019061,2]
[378869051,1755058232382,-511.83159814,0.00019061,2]
[378869053,1755058232391,-511.83159814,0.00019061,2]
[378869055,1755058232401,-511.83159814,0.00019061,2]
[378869057,1755058232410,-511.83159814,0.00019061,2]
[378869059,1755058232420,-511.83159814,0.00019061,2]
[378869060,1755058232429,-511.83159814,0.00019061,2]
[378869061,1755058232439,-511.83159814,0.00019061,2]
[378869062,1755058232449,-511.83159814,0.00019061,2]
[378869063,1755058232458,-511.83159814,0.00019061,2]
[378869065,1755058232468,-511.83159814,0.00019061,2]
[378869067,1755058232477,-511.83159814,0.00019061,2]
[378869069,1755058232486,-511.83159814,0.00019061,2]
[378869071,1755058232495,-511.83159814,0.00019061,2]
[378869073,1755058232505,-511.83159814,0.00019061,2]
[378869075,1755058232515,-545.95370467,0.00019061,2]
[378869077,1755058232524,-545.95370467,0.00019061,2]
[378869079,1755058232533,-545.95370467,0.00019061,2]
[378869081,1755058232543,-545.95370467,0.00019061,2]
[378869083,1755058232553,-545.95370467,0.00019061,2]
[378869085,1755058232562,-545.95370467,0.00019061,2]
[378869087,1755058232571,-545.95370467,0.00019061,2]
[378869089,1755058232580,-545.95370467,0.00019061,2]
[378869091,1755058232590,-545.95370467,0.00019061,2]
[378869093,1755058232599,-69430.23039203,0.00019062,2]
[378869094,1755058232611,-1603.15313432,0.00019062,2]
[378869095,1755058232623,-168757.79012579,0.00019062,2]